bitfinex/quotes_SOLUSD_20250206
["timestamp","ask_amount","ask_price","bid_price","bid_amount"]
[1738873990042,23.75381766,192.59,192.52,23.55391766]
[1738873990241,5.6515,192.6,192.54,23.55391766]
[1738873990445,5.4516,192.6,192.56,23.55391766]
[1738873990745,5.4516,192.6,192.57,23.55391766]
[1738873992066,5.4516,192.6,192.58,23.55391766]
[1738873992446,5.4516,192.6,192.57,23.55391766]
[1738873992642,5.4516,192.6,192.58,23.55391766]
[1738873993246,1.5573,192.64,192.6,0.8001]
[1738873993564,0.177,192.65,192.64,0.8001]
[1738873993958,0.177,192.65,192.64,24.35401766]
[1738873994262,1.7342,192.65,192.64,23.55391766]
[1738873995353,1.84465878,192.65,192.63,23.55391766]
[1738873995568,1.84465878,192.65,192.61,23.55391766]
[1738873995878,1.84465878,192.65,192.62,23.55391766]
[1738873996251,1.84465878,192.65,192.6,23.55391766]
[1738873996571,5.73765878,192.65,192.59,23.55391766]
[1738873997158,29.29157644,192.65,192.59,23.55391766]
[1738873997772,29.49147644,192.65,192.59,23.55391766]
[1738873997973,23.55391766,192.61,192.55,23.55391766]
[1738873998556,6.6506,192.63,192.58,23.55391766]
[1738873998557,5.4507,192.63,192.58,23.55391766]
[1738873998757,1.5573,192.63,192.6,23.55391766]
[1738873998959,1.5573,192.63,192.61,23.55391766]
[1738873999779,1.5573,192.63,192.6,23.55391766]
[1738873999969,3.8934,192.63,192.57,23.55391766]
[1738874000279,23.55391766,192.59,192.53,23.55391766]
[1738874000467,12.0384,192.63,192.54,0.8001]
[1738874000657,11.8385,192.63,192.56,0.8001]
[1738874001059,3.8934,192.63,192.6,23.55391766]
[1738874001275,1.5573,192.64,192.6,23.55391766]
[1738874002380,1.5573,192.64,192.61,23.55391766]
[1738874002697,1.5573,192.64,192.59,23.55391766]
[1738874002977,23.55391766,192.62,192.56,0.6602]
[1738874003162,23.55391766,192.63,192.56,24.21411766]
[1738874003366,1.5573,192.64,192.59,0.6602]
[1738874003583,0.28745878,192.65,192.63,0.6602]
[1738874003798,0.28745878,192.65,192.54,18.95682724]
[1738874003799,0.28745878,192.65,192.64,0.6602]
[1738874004995,0.28745878,192.65,192.64,24.21411766]
[1738874007294,0.28745878,192.65,192.64,23.55391766]
[1738874008484,1.84465878,192.65,192.64,23.55391766]
[1738874008680,1.84465878,192.65,192.61,23.55391766]
[1738874008888,1.84465878,192.65,192.59,24.21411766]
[1738874009197,1.84465878,192.65,192.62,23.55391766]
[1738874009386,1.84465878,192.65,192.61,23.55391766]
[1738874009589,1.84465878,192.65,192.6,23.55391766]
[1738874009772,5.73765878,192.65,192.59,23.55391766]
[1738874009975,29.29157644,192.65,192.59,23.55391766]
[1738874010164,23.55391766,192.64,192.58,23.55391766]
[1738874010366,5.451,192.62,192.56,23.61691766]
[1738874010568,5.451,192.62,192.56,0.063]
[1738874010569,23.55391766,192.61,192.56,0.063]
[1738874010781,23.55391766,192.6,192.56,0.063]
[1738874011084,23.55391766,192.6,192.53,23.55391766]
[1738874011085,23.55391766,192.58,192.51,23.55391766]
[1738874011286,23.89371766,192.58,192.51,23.55391766]
[1738874011471,23.55391766,192.56,192.49,23.55391766]
[1738874011798,23.55391766,192.56,192.47,24.21411766]
[1738874011799,23.55391766,192.54,192.47,24.21411766]
[1738874012174,23.55391766,192.54,192.4,30.01481766]
[1738874012175,23.89371766,192.53,192.46,23.55391766]
[1738874012505,5.7936,192.52,192.46,23.55391766]
[1738874013403,1.5832,192.51,192.46,23.55391766]
[1738874013600,1.5832,192.51,192.43,23.55391766]
[1738874013601,23.89371766,192.5,192.43,23.55391766]
[1738874013781,23.55391766,192.49,192.42,24.21411766]
[1738874013970,23.55391766,192.49,192.43,23.55391766]
[1738874014503,24.84624173,192.49,192.43,23.55391766]
[1738874014668,1.5586,192.48,192.43,23.55391766]
[1738874015099,1.5586,192.48,192.42,24.21411766]
[1738874015292,1.5586,192.48,192.42,23.55391766]
[1738874015502,1.5586,192.48,192.4,0.6602]
[1738874015503,0.09374441,192.44,192.4,23.55391766]
[1738874015819,0.09374441,192.44,192.42,23.55391766]
[1738874016096,0.09374441,192.44,192.41,23.55391766]
[1738874016402,23.98746207,192.44,192.37,23.55391766]
[1738874016600,5.457,192.41,192.36,24.27711766]
[1738874016786,23.55391766,192.39,192.33,23.55391766]
[1738874017096,23.55391766,192.39,192.3,23.55391766]
[1738874017097,25.17081766,192.37,192.3,23.55391766]
[1738874017391,23.55391766,192.35,192.29,23.55391766]
[1738874017577,23.55391766,192.34,192.28,23.55391766]
[1738874017784,23.55391766,192.34,192.27,23.55391766]
[1738874017996,23.55391766,192.33,192.26,23.55391766]
[1738874018298,23.55391766,192.33,192.27,23.55391766]
[1738874018502,0.12549,192.36,192.3,23.55391766]
[1738874018716,3.8991,192.35,192.31,23.55391766]
[1738874019075,1.5595,192.36,192.33,23.55391766]
[1738874019712,29.01231766,192.36,192.29,23.55391766]
[1738874020082,23.55391766,192.35,192.29,23.55391766]
[1738874020496,5.4596,192.32,192.26,23.55391766]
[1738874020817,23.55391766,192.29,192.25,0.6602]
[1738874020988,5.4596,192.32,192.23,23.61691766]
[1738874020989,1.5599,192.32,192.28,23.55391766]
[1738874021182,1.5599,192.32,192.27,23.55391766]
[1738874021406,21.5599,192.32,192.23,0.7232]
[1738874021581,23.55391766,192.28,192.23,0.063]
[1738874021781,23.55391766,192.27,192.23,0.063]
[1738874022301,44.00262853,192.31,192.23,0.063]
[1738874022302,23.55391766,192.26,192.23,0.063]
[1738874022502,23.55391766,192.25,192.23,0.063]
[1738874022800,23.55391766,192.26,192.23,0.063]
[1738874023006,27.45471766,192.27,192.23,0.063]
[1738874023307,23.55391766,192.26,192.23,0.063]
[1738874023713,3.9008,192.27,192.23,0.063]
[1738874023714,23.55391766,192.25,192.23,0.063]
[1738874024085,27.45471766,192.27,192.23,0.063]
[1738874024286,3.9008,192.27,192.23,0.063]
[1738874024506,27.45471766,192.27,192.23,0.063]
[1738874024818,29.01501766,192.27,192.23,0.063]
[1738874026205,23.55391766,192.26,192.23,0.063]
[1738874026601,5.4611,192.27,192.23,0.063]
[1738874026602,1.5605,192.24,192.23,0.063]
[1738874027197,21.5605,192.24,192.23,0.063]
[1738874027699,21.5605,192.24,192.23,0.0001]
[1738874027700,25.11441766,192.24,192.23,0.0001]
[1738874028427,20.0,192.21,192.14,23.55391766]
[1738874028718,25.11471766,192.2,192.14,0.6602]
[1738874029091,29.01681766,192.2,192.14,0.6602]
[1738874029516,23.55391766,192.15,192.13,0.063]
[1738874029890,20.0,192.17,192.13,0.7232]
[1738874030089,5.4629,192.2,192.14,0.6602]
[1738874030607,13.53733853,192.22,192.16,24.21411766]
[1738874030608,1.5607,192.22,192.16,24.21411766]
[1738874030798,23.55391766,192.21,192.16,0.6602]
[1738874031506,23.55391766,192.21,192.14,24.21411766]
[1738874031715,23.55391766,192.18,192.13,0.7232]
[1738874031894,29.01631766,192.22,192.16,0.6602]
[1738874032092,29.01631766,192.22,192.19,23.55391766]
[1738874032093,1.5607,192.22,192.19,23.55391766]
[1738874032296,1.5606,192.24,192.22,0.6602]
[1738874032705,1.5604,192.26,192.24,0.6602]
[1738874033091,20.0,192.25,192.24,0.6602]
[1738874033690,0.03,192.27,192.26,0.6602]
[1738874033888,0.03,192.27,192.26,24.21411766]
[1738874034607,0.03,192.27,192.26,24.01411766]
[1738874035228,1.5594,192.38,192.26,47.56803532]
[1738874035527,0.10971756,192.36,192.35,24.01411766]
[1738874035698,1.66921756,192.36,192.35,0.4602]
[1738874037213,0.10971756,192.36,192.35,24.01411766]
[1738874039498,0.10971756,192.36,192.35,0.4602]
[1738874040029,1.66921756,192.36,192.35,0.4602]
[1738874040315,1.66921756,192.36,192.33,0.4602]
[1738874040510,1.66921756,192.36,192.35,0.4602]
[1738874040908,1.66921756,192.36,192.34,0.4602]
[1738874041094,1.66921756,192.36,192.35,0.4602]
[1738874041301,0.10971756,192.36,192.35,0.4602]
[1738874042308,1.66921756,192.36,192.34,24.01411766]
[1738874042514,1.66921756,192.36,192.33,0.4602]
[1738874042712,1.66921756,192.36,192.32,0.4602]
[1738874042935,29.12203522,192.36,192.31,0.4602]
[1738874043113,29.12203522,192.36,192.3,0.4602]
[1738874043435,23.55391766,192.32,192.27,0.4602]
[1738874043605,23.55391766,192.32,192.28,0.4602]
[1738874043922,1.5596,192.35,192.33,0.4602]
[1738874044106,1.5596,192.35,192.23,2.063]
[1738874044107,1.5596,192.35,192.32,0.4602]
[1738874044301,21.5596,192.35,192.33,0.4602]
[1738874044510,21.5596,192.35,192.33,24.01411766]
[1738874044904,21.5596,192.35,192.34,0.4602]
[1738874045505,21.5596,192.35,192.33,24.01411766]
[1738874045716,21.5596,192.35,192.32,0.4602]
[1738874046520,21.5596,192.35,192.3,24.01411766]
[1738874046706,21.5596,192.35,192.32,0.4602]
[1738874046901,1.5596,192.35,192.34,0.4602]
[1738874048022,1.5596,192.35,192.32,0.4602]
[1738874048227,1.5596,192.35,192.31,0.4602]
[1738874048627,23.55391766,192.33,192.29,0.4602]
[1738874048937,43.55391766,192.32,192.27,0.4602]
[1738874049228,23.55391766,192.31,192.27,0.4602]
[1738874049426,43.55391766,192.32,192.28,0.4602]
[1738874049940,43.55391766,192.32,192.27,0.4602]
[1738874049941,23.55391766,192.3,192.27,0.4602]
[1738874050116,1.5601,192.29,192.26,0.4602]
[1738874050303,1.5601,192.29,192.25,0.4602]
[1738874050513,29.01431766,192.29,192.24,0.4602]
[1738874050715,29.01431766,192.29,192.26,0.4602]
[1738874050912,23.55391766,192.28,192.26,0.4602]
[1738874051433,23.55391766,192.29,192.26,0.4602]
[1738874051825,23.55391766,192.28,192.25,0.4602]
[1738874052420,23.55391766,192.28,192.26,0.4602]
[1738874052621,1.5603,192.27,192.25,0.4602]
[1738874052804,1.5603,192.27,192.26,0.4602]
[1738874053217,21.5603,192.27,192.26,0.4602]
[1738874053514,8.235,192.35,192.29,0.4602]
[1738874053831,1.5597,192.34,192.33,0.4602]
[1738874054012,0.10971756,192.36,192.35,0.4602]
[1738874054013,1.66921756,192.36,192.35,0.4602]
[1738874054325,1.66921756,192.36,192.34,0.2403]
[1738874054519,23.55391766,192.35,192.3,0.2403]
[1738874054725,23.55391766,192.33,192.29,0.2403]
[1738874055336,0.10994971,192.3,192.29,0.2403]
[1738874055910,0.10994971,192.3,192.29,23.79421766]
[1738874056724,0.10994971,192.3,192.29,47.34813532]
[1738874057809,0.10994971,192.3,192.29,48.34813532]
[1738874058134,0.10994971,192.3,192.29,53.54853532]
[1738874058426,0.10994971,192.3,192.29,54.32839978]
[1738874058606,0.10994971,192.3,192.29,23.79421766]
[1738874059519,1.66994971,192.3,192.29,0.2403]
[1738874060330,21.66994971,192.3,192.29,0.2403]
[1738874060529,20.0,192.29,192.28,0.2403]
[1738874060721,21.66994971,192.3,192.27,0.2403]
[1738874060722,20.0,192.28,192.27,0.2403]
[1738874061035,43.55391766,192.28,192.26,0.2403]
[1738874061730,20.0,192.25,192.24,0.2403]
[1738874061911,20.0,192.24,192.23,0.3033]
[1738874062537,1.5606,192.23,192.19,0.2403]
[1738874062748,25.11451766,192.23,192.2,0.2403]
[1738874062927,20.0,192.21,192.2,0.2403]
[1738874063460,23.55391766,192.21,192.17,0.2403]
[1738874063660,20.0,192.2,192.19,0.2403]
[1738874063942,1.5606,192.23,192.22,0.2403]
[1738874064330,1.5606,192.23,192.22,23.79421766]
[1738874064854,1.5606,192.23,192.22,0.2403]
[1738874065153,21.5606,192.23,192.22,0.1203]
[1738874065656,25.11401766,192.29,192.24,0.1203]
[1738874065937,1.5601,192.29,192.28,23.67421766]
[1738874066116,1.66994971,192.3,192.27,0.1203]
[1738874066540,21.66994971,192.3,192.27,0.1203]
[1738874066761,21.66994971,192.3,192.26,0.1203]
[1738874066940,21.66994971,192.3,192.25,0.1203]
[1738874066941,20.0,192.26,192.25,0.1203]
[1738874067416,20.0,192.26,192.24,0.1203]
[1738874067616,20.0,192.25,192.24,0.1203]
[1738874067818,20.0,192.25,192.23,0.1203]
[1738874068042,20.0,192.25,192.24,0.1203]
[1738874068634,20.0,192.24,192.22,0.1203]
[1738874068831,20.0,192.23,192.22,0.1203]
[1738874070455,21.5606,192.23,192.22,0.1203]
[1738874071937,1.5603,192.26,192.25,0.1203]
[1738874072144,20.0,192.24,192.23,0.1203]
[1738874072839,20.0,192.24,192.23,23.67421766]
[1738874073037,20.0,192.24,192.23,0.1203]
[1738874075444,20.10487603,192.24,192.23,0.1203]
[1738874076728,20.10487603,192.24,192.21,0.1203]
[1738874076729,20.0,192.22,192.21,0.1203]
[1738874076935,20.0,192.21,192.2,0.1203]
[1738874077756,20.0,192.19,192.18,0.1203]
[1738874078320,43.55391766,192.19,192.17,0.1203]
[1738874078621,20.0,192.16,192.14,0.1203]
[1738874078850,1.5611,192.17,192.12,0.1203]
[1738874078851,20.0,192.14,192.12,0.1203]
[1738874079018,20.0,192.14,192.09,0.0001]
[1738874079019,43.55391766,192.14,192.11,0.1203]
[1738874079237,20.0,192.1,192.09,0.1204]
[1738874081021,1.5616,192.1,192.09,0.1204]
[1738874081833,1.5055,192.19,192.14,0.1203]
[1738874082029,1.561,192.18,192.15,0.1203]
[1738874082238,2.89096411,192.21,192.19,0.1203]
[1738874082438,1.61037603,192.24,192.2,0.1203]
[1738874082724,0.10487603,192.24,192.23,0.1203]
[1738874082942,1.66537603,192.24,192.23,0.1203]
[1738874083139,0.10487603,192.24,192.23,0.1203]
[1738874083563,1.66537603,192.24,192.23,0.1203]
[1738874084332,0.10487603,192.24,192.23,0.1203]
[1738874085430,20.10487603,192.24,192.23,0.1203]
[1738874086026,45.21929369,192.24,192.23,0.1203]
[1738874086356,0.10487603,192.24,192.23,23.67421766]
[1738874088354,0.10487603,192.24,192.23,0.1203]
[1738874090556,0.10487603,192.24,192.23,23.67421766]
[1738874091145,0.10487603,192.24,192.23,0.1203]
[1738874091339,1.66537603,192.24,192.23,0.1203]
[1738874091959,21.66537603,192.24,192.23,0.1203]
[1738874093170,20.10487603,192.24,192.23,0.1203]
[1738874093364,20.10487603,192.24,192.23,23.67421766]
[1738874093536,0.10487603,192.24,192.23,23.67421766]
[1738874094761,0.10487603,192.24,192.23,0.1203]
[1738874095564,0.20334693,192.24,192.23,0.1203]
[1738874096137,20.0,192.23,192.22,0.1203]
[1738874096332,23.55391766,192.23,192.22,0.1203]
[1738874096543,20.0,192.23,192.22,0.1203]
[1738874097561,1.5606,192.23,192.22,0.1203]
[1738874100060,0.0984709,192.24,192.23,0.1203]
[1738874100942,1.6589709,192.24,192.23,0.1203]
[1738874101166,25.0729321,192.24,192.23,0.1203]
[1738874101540,25.0729321,192.24,192.22,0.1203]
[1738874101935,25.0729321,192.24,192.23,0.1203]
[1738874102160,25.0729321,192.24,192.22,0.1203]
[1738874102362,20.0,192.2,192.18,0.1203]
[1738874102658,43.4139612,192.2,192.19,0.1203]
[1738874103450,43.4139612,192.2,192.18,0.1203]
[1738874104180,24.9748612,192.19,192.13,0.063]
[1738874104475,20.0,192.16,192.13,0.063]
[1738874104639,5.4632,192.19,192.13,0.063]
[1738874104842,20.0,192.16,192.13,0.063]
[1738874105559,23.4139612,192.15,192.13,0.063]
[1738874105954,20.0,192.16,192.13,0.063]
[1738874105955,23.4139612,192.16,192.13,0.063]
[1738874106264,1.5609,192.19,192.13,0.063]
[1738874106438,24.9748612,192.19,192.13,0.063]
[1738874106643,20.0,192.14,192.13,0.063]
[1738874107953,23.4139612,192.14,192.13,0.063]
[1738874108161,24.9752612,192.14,192.13,0.063]
[1738874108463,1.5613,192.14,192.13,0.063]
[1738874108768,21.5613,192.14,192.13,0.063]
[1738874109467,1.5613,192.14,192.13,0.063]
[1738874110282,24.9752612,192.14,192.13,0.063]
[1738874110870,21.5613,192.14,192.13,0.063]
[1738874111246,1.5613,192.14,192.13,0.063]
[1738874111446,20.0,192.11,192.09,0.0001]
[1738874111645,1.5616,192.1,192.09,0.0001]
[1738874114242,24.9755612,192.1,192.09,0.0001]
[1738874115373,38.61376161,192.1,192.09,0.0001]
[1738874115547,62.02772281,192.1,192.09,0.0001]
[1738874115962,63.32157217,192.1,192.09,0.0001]
[1738874116162,63.32157217,192.1,192.03,0.063]
[1738874116163,20.0,192.07,192.03,0.063]
[1738874116367,23.4139612,192.04,191.96,6.3515]
[1738874116558,23.4139612,192.0,191.96,0.063]
[1738874116868,23.4139612,191.99,191.96,0.063]
[1738874117250,23.4139612,192.0,191.96,0.063]
[1738874117462,23.4139612,192.02,191.96,0.063]
[1738874117646,23.4139612,192.01,191.96,0.063]
[1738874117967,23.4139612,191.99,191.96,0.063]
[1738874118278,23.4139612,192.0,191.96,0.063]
[1738874118577,5.4684,192.01,191.96,0.063]
[1738874118578,23.4139612,191.97,191.96,0.063]
[1738874118982,5.4684,192.01,191.96,0.063]
[1738874118983,23.4139612,192.0,191.96,0.063]
[1738874119348,20.0,191.97,191.96,0.063]
[1738874119549,1.5624,192.01,191.96,0.063]
[1738874119749,23.4139612,192.06,191.96,0.063]
[1738874120051,1.5619,192.07,191.97,7.0528]
[1738874120467,20.0,192.05,191.97,7.0528]
[1738874120657,20.0,192.05,191.97,6.0528]
[1738874120865,43.4139612,192.05,191.97,6.0528]
[1738874121759,23.4139612,192.04,191.97,6.0528]
[1738874121965,1.5621,192.04,191.97,6.0528]
[1738874122290,20.0,192.03,191.97,6.0528]
[1738874122855,0.10086188,192.1,192.0,1.0]
[1738874123096,1.66246188,192.1,192.01,1.0]
[1738874123286,0.10086188,192.1,192.02,1.0]
[1738874123460,1.66246188,192.1,192.02,1.0]
[1738874123959,20.0,192.09,192.02,1.0]
[1738874124374,1.66246188,192.1,192.03,1.0]
[1738874124764,21.66246188,192.1,192.02,6.2076]
[1738874124965,21.66246188,192.1,192.0,6.208]
[1738874125171,20.0,192.09,192.0,6.208]
[1738874125691,20.0,192.09,192.0,7.208]
[1738874125856,20.0,192.09,192.01,1.0]
[1738874126066,1.5618,192.09,192.03,1.0]
[1738874126390,1.66246188,192.1,192.03,1.0]
[1738874126568,1.66246188,192.1,192.02,1.0]
[1738874127072,1.66246188,192.1,192.03,1.0]
[1738874127678,1.66246188,192.1,192.0,1.0]
[1738874127888,23.4139612,192.08,191.98,6.2088]
[1738874128058,23.4139612,192.08,191.99,1.0]
[1738874128691,23.4139612,192.06,191.97,7.638]
[1738874128859,23.4139612,192.04,191.97,6.0528]
[1738874129876,1.5622,192.03,191.97,6.0528]
[1738874130077,24.9761612,192.03,191.97,6.0528]
[1738874130554,23.4139612,192.01,191.96,0.063]
[1738874131575,1.5622,192.03,191.96,0.063]
[1738874131782,20.0,192.01,191.96,0.063]
[1738874132293,1.562,192.06,191.98,1.0]
[1738874132591,43.4139612,192.05,191.96,0.063]
[1738874132897,1.562,192.06,191.96,1.063]
[1738874133205,1.562,192.06,191.97,1.0]
[1738874133360,23.4139612,192.08,191.97,6.2089]
[1738874133361,20.0,192.05,191.97,6.2089]
[1738874133558,20.0,192.06,191.99,1.0]
[1738874134565,1.5619,192.07,191.99,1.0]
[1738874134566,21.5619,192.07,191.99,1.0]
[1738874134765,21.5619,192.07,192.0,1.0]
[1738874134966,20.0,192.07,192.0,1.0]
[1738874135161,1.5617,192.09,192.0,1.0]
[1738874135367,0.10178433,192.01,192.0,1.0]
[1738874136478,0.10178433,192.01,192.0,6.2083]
[1738874137385,0.10178433,192.01,192.0,8.11482708]
[1738874137578,0.11120221,192.03,192.02,22.12549]
[1738874137763,0.10850927,192.04,192.03,2.0]
[1738874139167,0.10850927,192.04,192.03,5.77301114]
[1738874139388,0.10850927,192.04,192.03,10.98051114]
[1738874140183,0.10850927,192.04,192.03,9.98051114]
[1738874140486,0.10850927,192.04,192.03,3.77301114]
[1738874141001,0.10850927,192.04,192.0,13.9459]
[1738874141591,0.10850927,192.04,192.03,1.0]
[1738874141771,0.10850927,192.04,192.03,1.78085585]
[1738874142271,0.10850927,192.04,192.03,1.0]
[1738874143690,0.10850927,192.04,192.03,6.2075]
[1738874143988,0.10850927,192.04,192.03,9.98519803]
[1738874144298,0.13850927,192.04,192.03,9.98519803]
[1738874144497,0.13850927,192.04,192.03,3.77769803]
[1738874145888,25.11457047,192.04,191.96,0.063]
[1738874146091,23.4139612,192.02,191.96,0.063]
[1738874146270,23.4139612,192.03,191.96,0.063]
[1738874146468,29.01997047,192.04,191.96,0.063]
[1738874147480,23.4139612,192.03,191.96,0.063]
[1738874148100,1.5623,192.02,191.96,0.063]
[1738874148791,1.5622,192.03,191.96,0.063]
[1738874148992,1.5622,192.03,191.96,1.063]
[1738874149488,1.5622,192.03,191.96,0.063]
[1738874149667,1.5622,192.03,191.97,3.79191293]
[1738874150504,23.4139612,192.0,191.97,3.79191293]
[1738874151003,43.4139612,192.02,191.97,3.79191293]
[1738874151206,20.0,192.01,191.96,0.063]
[1738874151376,5.4678,192.03,191.96,0.063]
[1738874151575,43.4139612,192.0,191.96,0.063]
[1738874152079,23.4139612,191.98,191.96,0.063]
[1738874152289,21.5627,191.97,191.96,0.063]
[1738874152479,1.5625,192.0,191.96,0.063]
[1738874153325,4.04390927,192.04,191.96,0.063]
[1738874154007,20.0,192.02,191.96,0.063]
[1738874154498,4.04390927,192.04,191.96,0.063]
[1738874154499,1.5624,192.01,191.96,0.063]
[1738874154695,0.13850927,192.04,191.96,0.063]
[1738874154884,0.13850927,192.04,191.97,1.78112403]
[1738874155094,0.13850927,192.04,191.98,1.0]
[1738874155312,0.13850927,192.04,191.97,11.96712403]
[1738874155516,0.09476556,191.98,191.97,10.186]
[1738874155814,0.09476556,191.98,191.97,10.9671242]
[1738874155991,0.09476556,191.98,191.97,10.186]
[1738874156398,0.09476556,191.98,191.96,0.063]
[1738874156906,1.65736556,191.98,191.96,0.063]
[1738874157298,25.07132676,191.98,191.96,0.063]
[1738874157486,23.4139612,191.97,191.96,0.063]
[1738874158508,44.9766612,191.97,191.96,0.063]
[1738874159213,21.28784085,191.97,191.96,0.063]
[1738874159800,1.28784085,191.97,191.96,0.063]
[1738874160090,21.65736556,191.98,191.96,0.063]
[1738874160291,20.09476556,191.98,191.96,0.063]
[1738874160521,21.65736556,191.98,191.96,0.063]
[1738874161307,25.07132676,191.98,191.96,0.063]
[1738874161513,23.4139612,191.97,191.96,0.063]
[1738874162332,24.9766612,191.97,191.96,0.063]
[1738874163253,1.5627,191.97,191.96,0.063]
[1738874163421,21.5627,191.97,191.96,0.063]
[1738874163938,1.65736556,191.98,191.96,0.063]
[1738874164117,0.09476556,191.98,191.96,0.063]
[1738874164514,0.09476556,191.98,191.96,1.063]
[1738874164714,0.09476556,191.98,191.97,1.0]
[1738874164916,0.09476556,191.98,191.96,0.063]
[1738874165610,0.09476556,191.98,191.96,3.84869911]
[1738874166418,1.65736556,191.98,191.96,3.84869911]
[1738874166623,25.07132676,191.98,191.96,3.84869911]
[1738874166847,25.10132676,191.98,191.96,0.063]
[1738874167241,23.4139612,191.97,191.96,0.063]
[1738874167463,23.4139612,191.97,191.94,0.063]
[1738874167464,25.1829412,191.97,191.94,0.063]
[1738874167615,43.4139612,191.95,191.94,0.063]
[1738874168119,43.5394512,191.95,191.94,0.063]
[1738874168320,0.12549,191.94,191.8,13.96]
[1738874168517,1.5633,191.9,191.83,1.0]
[1738874168738,1.5628,191.96,191.86,1.0]
[1738874168933,1.5628,191.96,191.87,1.0]
[1738874169139,1.5628,191.96,191.85,1.0]
[1738874169140,20.0,191.94,191.85,1.0]
[1738874169523,20.0,191.94,191.86,1.0]
[1738874169720,0.12476556,191.98,191.88,1.0]
[1738874169918,1.68736556,191.98,191.9,1.0]
[1738874170138,0.12476556,191.98,191.91,1.78137319]
[1738874170445,0.12476556,191.98,191.93,1.0]
[1738874170618,0.12476556,191.98,191.94,1.0]
[1738874170826,0.12476556,191.98,191.94,1.78122626]
[1738874171021,0.12476556,191.98,191.97,1.0]
[1738874171218,0.12476556,191.98,191.97,16.44393499]
[1738874171551,0.11285191,192.0,191.99,15.91380853]
[1738874171751,0.11048878,192.01,192.0,21.12210853]
[1738874171959,0.03,192.1,192.0,21.12210853]
[1738874171960,0.03,192.1,192.02,2.25098]
[1738874172160,0.03,192.1,192.02,2.0318447]
[1738874172335,0.03,192.1,192.02,15.44369323]
[1738874173017,0.03,192.1,192.02,20.65139323]
[1738874173234,0.03,192.1,192.02,21.65139323]
[1738874173467,0.03,192.1,192.02,25.67199513]
[1738874173668,0.03,192.1,192.04,2.12549]
[1738874173827,0.03,192.1,192.06,1.0]
[1738874174134,0.03,192.1,192.06,1.78069016]
[1738874174646,0.03,192.1,192.06,1.0]
[1738874174832,0.03,192.1,192.05,21.0]
[1738874175035,1.5917,192.1,192.03,1.78072771]
[1738874175228,0.03,192.1,192.04,1.0]
[1738874175427,0.11325174,192.04,192.03,1.0]
[1738874175655,0.11325174,192.04,192.01,1.0]
[1738874175838,0.11325174,192.04,192.02,0.78097541]
[1738874176145,0.11325174,192.04,192.03,15.66282853]
[1738874176449,0.10254599,192.05,192.04,2.12549]
[1738874176633,0.09495989,192.06,192.05,15.66282853]
[1738874177031,0.09495989,192.06,192.05,20.86972853]
[1738874177551,0.09495989,192.06,192.05,24.63170905]
[1738874179248,0.09495989,192.06,192.05,3.76198052]
[1738874179447,0.09495989,192.06,192.05,23.63170905]
[1738874179644,0.09495989,192.06,192.05,24.63170905]
[1738874180630,0.09495989,192.06,192.05,20.86972853]
[1738874180832,0.09495989,192.06,192.05,19.86972853]
[1738874181034,0.09495989,192.06,192.03,5.2073]
[1738874181357,0.09495989,192.06,192.03,1.0]
[1738874181733,0.09495989,192.06,192.02,6.2075]
[1738874181933,0.09495989,192.06,192.02,5.2075]
[1738874182134,0.09495989,192.06,191.99,7.1783]
[1738874182353,0.09495989,192.06,191.99,11.3867]
[1738874182738,1.65695989,192.06,191.99,11.3867]
[1738874182941,0.09495989,192.06,191.98,12.16983521]
[1738874183141,0.09495989,192.06,191.98,11.16983521]
[1738874183344,0.09495989,192.06,192.0,1.0]
[1738874183545,0.09495989,192.06,192.0,2.0]
[1738874184164,0.09495989,192.06,191.99,14.56925644]
[1738874184362,0.09495989,192.06,191.99,15.44376644]
[1738874184560,0.09495989,192.06,191.99,13.66282853]
[1738874184759,21.65695989,192.06,191.98,9.3888]